bitfinex-derivatives/quotes_ETHF0:USTF0_20250327
["timestamp","ask_amount","ask_price","bid_price","bid_amount"]
[1743049450554,0.00738716,2029.4,2029.3,4.22294]
[1743049450747,0.00738716,2029.4,2029.3,2.29294]
[1743049450948,0.00738716,2029.4,2029.3,4.49294]
[1743049451949,0.00738716,2029.4,2029.3,2.29294]
[1743049452155,0.00738716,2029.4,2029.3,4.51294]
[1743049452355,0.00738716,2029.4,2029.3,2.29294]
[1743049452559,0.00738716,2029.4,2029.3,4.64294]
[1743049453060,0.00738716,2029.4,2029.3,2.29294]
[1743049453360,0.00738716,2029.4,2029.3,4.32294]
[1743049453560,0.00738716,2029.4,2029.3,2.29294]
[1743049454158,4.20057716,2029.4,2029.3,1.3075]
[1743049454363,4.20057716,2029.4,2029.1,8.05392]
[1743049454364,0.98547,2029.3,2029.1,8.05392]
[1743049454559,3.69817,2029.3,2029.2,1.3716]
[1743049455254,2.7127,2029.3,2029.2,1.3716]
[1743049456056,2.7127,2029.3,2029.2,2.35709]
[1743049456361,2.7127,2029.3,2029.2,1.3716]
[1743049456758,3.69814,2029.3,2029.2,1.3716]
[1743049457155,2.7127,2029.3,2029.2,1.3716]
[1743049457960,2.7127,2029.3,2029.2,2.35709]
[1743049458354,3.69814,2029.3,2029.2,1.3716]
[1743049458658,2.7127,2029.3,2029.2,4.36709]
[1743049458858,2.7127,2029.3,2029.2,2.35709]
[1743049459057,2.7127,2029.3,2029.2,4.37709]
[1743049459363,2.7127,2029.3,2029.2,2.35709]
[1743049460160,2.0546,2029.3,2029.2,2.35709]
[1743049460351,2.0546,2029.3,2029.2,4.51709]
[1743049460748,2.0546,2029.3,2029.2,2.35709]
[1743049460958,2.0546,2029.3,2029.2,4.27709]
[1743049461159,2.0546,2029.3,2029.2,2.35709]
[1743049461659,2.0546,2029.3,2029.2,4.38709]
[1743049462056,2.0546,2029.3,2029.2,2.35709]
[1743049462258,2.0546,2029.3,2029.2,4.69709]
[1743049463764,2.0546,2029.3,2029.2,2.35709]
[1743049463967,2.0546,2029.3,2029.2,4.49709]
[1743049464261,2.0546,2029.3,2029.2,2.35709]
[1743049464462,2.0546,2029.3,2029.2,4.37709]
[1743049464864,2.0546,2029.3,2029.2,2.35709]
[1743049465764,2.0546,2029.3,2029.2,1.3716]
[1743049465956,3.04004,2029.3,2029.2,1.3716]
[1743049466357,2.0546,2029.3,2029.2,4.29709]
[1743049466560,2.0546,2029.3,2029.2,2.35709]
[1743049466864,2.0546,2029.3,2029.2,4.58709]
[1743049467668,2.0546,2029.3,2029.2,2.35709]
[1743049467861,2.0546,2029.3,2029.2,4.58709]
[1743049468665,2.0546,2029.3,2029.2,2.35709]
[1743049468864,3.04004,2029.3,2029.2,3.4016]
[1743049469067,3.04004,2029.3,2029.2,1.3716]
[1743049470767,2.0546,2029.3,2029.2,2.35709]
[1743049471060,3.04004,2029.3,2029.2,1.3716]
[1743049472163,2.0546,2029.3,2029.2,3.6216]
[1743049472361,2.0546,2029.3,2029.2,2.35709]
[1743049472570,1.4001,2029.3,2029.2,2.35709]
[1743049472769,1.4001,2029.3,2029.2,4.30709]
[1743049472964,1.4001,2029.3,2029.2,4.41709]
[1743049473165,1.4001,2029.3,2029.2,4.59709]
[1743049473362,1.4001,2029.3,2029.2,2.35709]
[1743049473561,1.4001,2029.3,2029.2,4.43709]
[1743049473772,1.4001,2029.3,2029.2,2.35709]
[1743049474065,1.4001,2029.3,2029.2,2.77709]
[1743049475170,1.4001,2029.3,2029.2,2.35709]
[1743049475470,1.4001,2029.3,2029.2,4.34709]
[1743049475871,0.99278716,2029.4,2029.2,4.34709]
[1743049476170,1.40828716,2029.4,2029.3,2.39774]
[1743049476369,1.40828716,2029.4,2029.3,4.31774]
[1743049478672,1.40828716,2029.4,2029.3,2.39774]
[1743049478872,0.00738716,2029.4,2029.3,2.39774]
[1743049479073,0.00738716,2029.4,2029.3,4.66774]
[1743049479778,0.00738716,2029.4,2029.3,4.68774]
[1743049479982,0.00738716,2029.4,2029.3,2.39774]
[1743049480480,0.00738716,2029.4,2029.3,4.47774]
[1743049480675,0.00738716,2029.4,2029.3,4.74774]
[1743049481074,0.00738716,2029.4,2029.3,2.39774]
[1743049481977,0.00738716,2029.4,2029.3,4.70774]
[1743049482174,1.31908716,2029.4,2029.3,4.70774]
[1743049482878,1.31908716,2029.4,2029.3,2.39774]
[1743049483281,1.31908716,2029.4,2029.3,4.72774]
[1743049483481,1.31908716,2029.4,2029.3,4.50774]
[1743049484083,1.31908716,2029.4,2029.3,2.39774]
[1743049484285,1.31908716,2029.4,2029.3,4.65774]
[1743049484488,1.31908716,2029.4,2029.3,2.39774]
[1743049484690,1.31908716,2029.4,2029.3,4.78774]
[1743049484883,1.31908716,2029.4,2029.3,2.39774]
[1743049485182,0.00738716,2029.4,2029.3,4.47774]
[1743049485388,0.00738716,2029.4,2029.3,2.39774]
[1743049485576,0.00738716,2029.4,2029.3,4.57774]
[1743049486384,0.00738716,2029.4,2029.3,2.39774]
[1743049486585,0.00738716,2029.4,2029.3,4.57774]
[1743049486785,0.00738716,2029.4,2029.3,7.78554]
[1743049487281,0.00738716,2029.4,2029.3,8.48344]
[1743049488989,1.68531,2029.8,2029.6,0.98527]
[1743049488990,1.6853,2029.8,2029.6,0.98527]
[1743049489183,1.3186,2029.7,2029.6,1.38527]
[1743049489383,1.3186,2029.7,2029.6,42.18527]
[1743049490592,1.3186,2029.7,2029.6,41.78527]
[1743049490785,1.3186,2029.7,2029.6,44.05527]
[1743049490991,1.3186,2029.7,2029.6,44.07527]
[1743049491293,1.3186,2029.7,2029.6,44.04527]
[1743049492388,1.3186,2029.7,2029.6,43.79527]
[1743049492887,1.3186,2029.7,2029.6,0.98527]
[1743049493088,1.3186,2029.7,2029.6,3.08527]
[1743049493484,1.3186,2029.7,2029.6,0.98527]
[1743049493886,1.3186,2029.7,2029.6,3.08527]
[1743049494093,1.3186,2029.7,2029.6,0.98527]
[1743049494591,1.3186,2029.7,2029.6,2.95527]
[1743049494794,1.3186,2029.7,2029.6,0.98527]
[1743049495093,1.3186,2029.7,2029.6,3.13527]
[1743049496584,1.3186,2029.7,2029.6,0.98527]
[1743049496788,1.3186,2029.7,2029.6,3.35527]
[1743049496995,1.3186,2029.7,2029.6,3.11527]
[1743049497193,1.3186,2029.7,2029.6,3.06527]
[1743049497694,1.3186,2029.7,2029.6,0.98527]
[1743049497897,1.3186,2029.7,2029.6,3.20527]
[1743049498198,1.3186,2029.7,2029.6,0.98527]
[1743049498389,1.3186,2029.7,2029.6,2.90527]
[1743049499199,1.3186,2029.7,2029.6,0.98527]
[1743049499495,1.3186,2029.7,2029.6,3.15527]
[1743049499693,1.3186,2029.7,2029.6,2.98527]
[1743049499999,1.3186,2029.7,2029.6,2.3]
[1743049500195,1.3186,2029.7,2029.6,1.4479]
[1743049501194,1.3186,2029.7,2029.6,2.43319]
[1743049507699,1.3186,2029.7,2029.6,3.08829]
[1743049523502,1.08995231,2029.9,2029.8,0.9852]
[1743049523703,1.08995231,2029.9,2029.8,3.3352]
[1743049523904,0.00488159,2029.9,2029.8,3.3252]
[1743049524205,0.00488159,2029.9,2029.8,4.7068]
[1743049526013,0.00488159,2029.9,2029.8,7.8608]
[1743049526818,0.00488159,2029.9,2029.8,7.8108]
[1743049527116,0.00488159,2029.9,2029.8,5.9108]
[1743049527419,0.00488159,2029.9,2029.8,7.8408]
[1743049527615,0.00488159,2029.9,2029.8,5.5208]
[1743049527815,0.00488159,2029.9,2029.8,7.7908]
[1743049530816,0.00488159,2029.9,2029.8,5.5208]
[1743049531121,0.00488159,2029.9,2029.8,7.7008]
[1743049531315,0.00488159,2029.9,2029.8,7.6808]
[1743049531520,0.00488159,2029.9,2029.8,5.5208]
[1743049531818,0.00488159,2029.9,2029.8,7.4508]
[1743049532834,0.00488159,2029.9,2029.8,8.7286]
[1743049533016,0.00488159,2029.9,2029.8,11.0176]
[1743049533217,0.00488159,2029.9,2029.8,7.8098]
[1743049533517,0.00488159,2029.9,2029.8,7.8698]
[1743049533710,0.00488159,2029.9,2029.8,5.5198]
[1743049534517,0.00488159,2029.9,2029.8,10.6776]
[1743049534718,0.00488159,2029.9,2029.8,8.7276]
[1743049535019,0.00488159,2029.9,2029.8,9.1176]
[1743049535414,0.00488159,2029.9,2029.8,8.7276]
[1743049536018,0.00488159,2029.9,2029.8,10.9176]
[1743049536211,0.00488159,2029.9,2029.8,8.7276]
[1743049536411,0.00488159,2029.9,2029.8,10.7176]
[1743049536818,0.00488159,2029.9,2029.8,7.5098]
[1743049537018,0.00488159,2029.9,2029.8,10.7176]
[1743049537917,0.00488159,2029.9,2029.8,11.0876]
[1743049538219,0.00488159,2029.9,2029.8,8.7276]
[1743049538620,0.00488159,2029.9,2029.8,11.0076]
[1743049540821,0.00488159,2029.9,2029.8,7.7998]
[1743049543826,0.00488159,2029.9,2029.8,5.5198]
[1743049544020,0.00488159,2029.9,2029.8,7.6998]
[1743049546124,0.00488159,2029.9,2029.8,5.5198]
[1743049546321,0.00488159,2029.9,2029.8,5.9698]
[1743049547425,0.00488159,2029.9,2029.8,9.1776]
[1743049548725,0.00488159,2029.9,2029.8,8.7276]
[1743049548926,0.00488159,2029.9,2029.8,11.5976]
[1743049549929,0.00488159,2029.9,2029.8,8.7276]
[1743049550228,0.00488159,2029.9,2029.8,10.8876]
[1743049551832,0.00488159,2029.9,2029.8,13.3876]
[1743049552022,1.75271839,2030.4,2030.3,0.98495]
[1743049552331,0.6537,2030.5,2030.4,0.9849]
[1743049552531,0.63951698,2030.5,2030.4,43.8749]
[1743049553122,1.94141698,2030.5,2030.4,45.1738]
[1743049553428,1.94141698,2030.5,2030.4,45.0138]
[1743049553625,1.94141698,2030.5,2030.4,43.0838]
[1743049554132,1.94141698,2030.5,2030.4,42.0989]
[1743049554326,1.94141698,2030.5,2030.4,44.3589]
[1743049554525,1.94141698,2030.5,2030.4,42.0989]
[1743049555327,1.94141698,2030.5,2030.4,43.0838]
[1743049555935,1.94141698,2030.5,2030.4,45.2338]
[1743049556629,1.94141698,2030.5,2030.4,43.0838]
[1743049557631,1.94141698,2030.5,2030.4,45.0238]
[1743049558433,1.94141698,2030.5,2030.4,44.0538]
[1743049561627,1.3019,2030.5,2030.4,44.0538]
[1743049561822,1.3019,2030.5,2030.4,44.7361]
[1743049562532,1.3019,2030.5,2030.4,47.9439]
[1743049567937,3.2078,2030.7,2030.6,0.98481]
[1743049568140,3.2078,2030.7,2030.6,2.93481]
[1743049568440,1.65834,2031.2,2030.6,4.41199]
[1743049568736,2.36844,2031.2,2030.7,3.8583]
[1743049569041,2.36844,2031.2,2031.0,0.98459]
[1743049569235,1.3287,2031.1,2031.0,0.98459]
[1743049569531,1.3287,2031.1,2031.0,3.23459]
[1743049569733,3.2078,2031.4,2030.9,2.0601]
[1743049569936,2.0025,2031.3,2031.1,0.98452]
[1743049570135,1.65829,2031.3,2031.2,1.3631]
[1743049570338,1.65829,2031.3,2031.2,42.14891698]
[1743049574742,0.6738,2031.3,2031.2,43.13343698]
[1743049575641,0.6738,2031.3,2031.2,45.47343698]
[1743049575842,0.6738,2031.3,2031.2,43.13343698]
[1743049576035,1.65827,2031.3,2031.2,42.14891698]
[1743049576843,1.65827,2031.3,2031.2,44.35891698]
[1743049577042,1.65827,2031.3,2031.2,42.14891698]
[1743049577749,0.98447,2031.3,2031.2,44.48891698]
[1743049577936,0.98447,2031.3,2031.2,45.02331698]
[1743049578146,0.98447,2031.3,2031.2,42.83331698]
[1743049578941,0.98447,2031.3,2031.2,44.97331698]
[1743049579135,4.84065,2031.4,2031.2,45.95783698]
[1743049579345,4.84065,2031.4,2031.3,1.4294]
[1743049579849,4.84065,2031.4,2031.3,3.3494]
[1743049580038,4.84065,2031.4,2031.2,42.46889]
[1743049580240,0.98447,2031.3,2031.2,41.4844]
[1743049580546,4.84065,2031.4,2031.2,44.53892]
[1743049580750,3.2078,2031.4,2031.3,0.98447]
[1743049581042,3.2078,2031.4,2031.3,3.61837]
[1743049581043,4.19222,2031.4,2031.3,3.61837]
[1743049581246,3.2078,2031.4,2031.3,3.61837]
[1743049581444,3.2078,2031.4,2031.3,3.67837]
[1743049582538,3.2078,2031.4,2031.3,1.69837]
[1743049582936,0.6513,2031.5,2031.3,1.69837]
[1743049583142,1.63567,2031.5,2031.3,1.69837]
[1743049583345,1.63567,2031.5,2031.3,3.85837]
[1743049583551,1.63567,2031.5,2031.3,3.72837]
[1743049583850,1.63568,2031.5,2031.3,1.69837]
[1743049584147,1.63568,2031.5,2031.3,3.66837]
[1743049584346,7.71333921,2031.6,2031.3,2.6839]
[1743049584545,7.71333921,2031.6,2031.4,0.98442]
[1743049584943,7.71333921,2031.6,2031.5,0.6688]
[1743049585143,7.71333921,2031.6,2031.5,2.8888]
[1743049585343,7.71333921,2031.6,2031.5,0.6688]
[1743049585544,8.69765921,2031.6,2031.5,0.6688]
[1743049586954,7.71333921,2031.6,2031.5,2.7188]
[1743049587160,7.71333921,2031.6,2031.5,1.65317]
[1743049587653,7.71333921,2031.6,2031.5,0.6688]
[1743049588655,8.69765921,2031.6,2031.5,0.6688]
[1743049588853,7.71333921,2031.6,2031.5,0.6688]
[1743049589056,7.71333921,2031.6,2031.5,2.8788]
[1743049589257,7.71333921,2031.6,2031.5,0.6688]
[1743049589452,7.71333921,2031.6,2031.5,3.81317]
[1743049589958,7.71333921,2031.6,2031.5,0.6688]
[1743049590258,9.06573921,2031.6,2031.5,2.6288]
[1743049590653,9.06573921,2031.6,2031.5,3.9613]
[1743049590859,9.06573921,2031.6,2031.5,4.94567]
[1743049591061,9.06573921,2031.6,2031.5,3.9613]
[1743049593569,9.06573921,2031.6,2031.5,4.94567]
[1743049595162,9.06573921,2031.6,2031.5,3.9613]
[1743049595363,9.06573921,2031.6,2031.5,4.94567]
[1743049595856,10.05005921,2031.6,2031.5,4.94567]
[1743049599162,9.06573921,2031.6,2031.5,4.94567]
[1743049599361,7.71333921,2031.6,2031.5,4.94567]
[1743049600168,9.02013921,2031.6,2031.5,4.94567]
[1743049600759,9.02013921,2031.6,2031.5,3.9613]
[1743049601168,10.00445921,2031.6,2031.5,3.9613]
[1743049601566,9.02013921,2031.6,2031.5,3.9613]
[1743049601768,9.02013921,2031.6,2031.5,4.94567]
[1743049601961,9.02013921,2031.6,2031.5,3.9613]
[1743049602160,9.02013921,2031.6,2031.5,4.94567]
[1743049602560,9.02013921,2031.6,2031.5,3.9613]
[1743049602763,9.02013921,2031.6,2031.5,4.94567]
[1743049603765,10.00445921,2031.6,2031.5,3.9613]
[1743049603967,9.02013921,2031.6,2031.5,3.9613]
[1743049605164,10.00445921,2031.6,2031.5,3.9613]
[1743049605469,9.02013921,2031.6,2031.5,3.9613]
[1743049605671,9.02013921,2031.6,2031.5,4.94567]
[1743049605863,9.02013921,2031.6,2031.5,3.9613]
[1743049606070,10.00445921,2031.6,2031.5,3.9613]
[1743049606765,9.02013921,2031.6,2031.5,4.94567]
[1743049609169,1.3068,2031.6,2031.5,4.94567]
[1743049635187,3.2078,2031.8,2031.7,0.98427]
[1743049635384,1.3682,2031.8,2031.7,3.37427]
[1743049635584,1.3682,2031.8,2031.7,0.98427]
[1743049635784,1.3682,2031.8,2031.7,4.65217]
[1743049635992,1.3682,2031.8,2031.7,2.29217]
[1743049636187,1.3682,2031.8,2031.7,4.47217]
[1743049637285,1.3682,2031.8,2031.7,2.29217]
[1743049637486,1.3682,2031.8,2031.7,4.30217]
[1743049639294,1.3682,2031.8,2031.7,4.65217]
[1743049639496,1.3682,2031.8,2031.7,4.31217]
[1743049640597,1.3682,2031.8,2031.7,2.29217]
[1743049640788,1.3682,2031.8,2031.7,5.25427]
[1743049640983,5.56023,2031.8,2031.7,1.3079]
[1743049641184,0.98432,2031.6,2031.5,0.00738716]
[1743049641493,0.98432,2031.6,2031.5,1.05738716]
[1743049641888,2.30512,2031.6,2031.5,1.05738716]
[1743049642089,3.63142,2031.6,2031.5,1.05738716]
[1743049642391,2.6471,2031.6,2031.5,2.04175716]
[1743049642792,1.08789129,2031.7,2031.6,0.98432]
[1743049642997,1.08789129,2031.7,2031.6,6.72132]
[1743049643200,4.5917,2031.8,2031.7,0.98427]
[1743049643393,4.5917,2031.8,2031.7,41.78427]
[1743049643700,4.5917,2031.8,2031.7,44.48097]
[1743049644104,4.5917,2031.8,2031.7,44.67097]
[1743049644294,4.5917,2031.8,2031.7,45.97807]
[1743049644494,4.5917,2031.8,2031.7,43.75807]
[1743049644693,4.5917,2031.8,2031.7,45.86807]
[1743049644999,4.5917,2031.8,2031.7,45.69807]
[1743049645998,4.5917,2031.8,2031.7,43.75807]
[1743049646193,4.5917,2031.8,2031.7,45.71807]
[1743049646393,4.5917,2031.8,2031.7,43.75807]
[1743049646803,4.5917,2031.8,2031.7,45.89807]
[1743049647002,4.5917,2031.8,2031.7,45.96807]
[1743049647301,1.3839,2031.8,2031.7,43.75807]
[1743049647695,1.3839,2031.8,2031.7,45.73807]
[1743049647895,1.3839,2031.8,2031.7,43.75807]
[1743049648195,1.3839,2031.8,2031.7,46.09807]
[1743049648701,1.3839,2031.8,2031.7,43.75807]
[1743049649001,1.3839,2031.8,2031.7,45.84807]
[1743049649896,1.3839,2031.8,2031.7,43.75807]
[1743049650202,1.3839,2031.8,2031.7,45.86807]
[1743049651102,1.3839,2031.8,2031.7,43.75807]
[1743049651612,1.3839,2031.8,2031.7,46.01807]
[1743049651806,2.36813,2031.8,2031.7,42.1071]
[1743049652006,1.3839,2031.8,2031.7,42.1071]
[1743049652207,1.3839,2031.8,2031.7,43.09137]
[1743049652403,1.3839,2031.8,2031.7,45.37137]
[1743049653006,1.3839,2031.8,2031.7,43.09137]
[1743049653802,1.3839,2031.8,2031.7,45.31137]
[1743049653999,1.3839,2031.8,2031.7,43.09137]
[1743049654710,2.36813,2031.8,2031.7,42.1071]
[1743049654911,2.066,2031.8,2031.7,43.09137]
[1743049655108,2.066,2031.8,2031.7,45.47137]
[1743049655312,2.066,2031.8,2031.7,44.4871]
[1743049655709,2.066,2031.8,2031.7,45.47137]
[1743049656798,2.066,2031.8,2031.7,45.32137]
[1743049657808,2.066,2031.8,2031.7,43.09137]
[1743049658300,2.066,2031.8,2031.7,45.38137]
[1743049659010,2.066,2031.8,2031.7,43.09137]
[1743049659212,2.066,2031.8,2031.7,45.39137]
[1743049659411,2.066,2031.8,2031.7,43.09137]
[1743049659611,2.066,2031.8,2031.7,45.23137]
[1743049659913,2.066,2031.8,2031.7,45.41137]
[1743049660108,1.3839,2031.8,2031.7,43.09137]
[1743049660309,1.3839,2031.8,2031.7,45.21137]
[1743049660718,1.3839,2031.8,2031.7,43.09137]
[1743049660906,1.3839,2031.8,2031.7,45.33137]
[1743049661314,1.3839,2031.8,2031.7,43.09137]
[1743049661715,1.3839,2031.8,2031.7,45.34137]
[1743049662220,7.71056742,2032.0,2031.9,0.98418]
[1743049662423,7.71056742,2032.0,2031.9,3.19418]
[1743049662821,7.71056742,2032.0,2031.9,3.87348]
[1743049663026,7.71056742,2032.0,2031.9,44.67348]
[1743049663317,7.71056742,2032.0,2031.9,41.4793]
[1743049663527,9.13116742,2032.0,2031.9,46.03428]
[1743049663915,10.11529742,2032.0,2031.9,43.78428]
[1743049664219,11.11157748,2032.0,2031.9,42.8001]
[1743049664421,11.76677748,2032.0,2031.9,42.8001]
[1743049664621,11.76677748,2032.0,2031.9,43.78428]
[1743049665026,11.76677748,2032.0,2031.9,42.1208]
[1743049665320,12.85376907,2032.0,2031.9,40.8]
[1743049668730,12.85376907,2032.0,2031.9,4.54058]
[1743049668936,12.85376907,2032.0,2031.9,2.31058]
[1743049669123,12.85376907,2032.0,2031.9,43.11058]
[1743049669328,12.85376907,2032.0,2031.9,44.1564]
[1743049669834,12.85376907,2032.0,2031.9,45.4261]
[1743049670437,12.85376907,2032.0,2031.9,45.8561]
[1743049670628,12.85376907,2032.0,2031.9,43.4961]
[1743049676341,12.85376907,2032.0,2031.9,42.1264]
[1743049678237,12.85376907,2032.0,2031.9,1.3264]
[1743049678742,12.85376907,2032.0,2031.9,3.3564]
[1743049678937,12.85376907,2032.0,2031.9,1.3264]
[1743049679241,12.85376907,2032.0,2031.9,4.2258]
[1743049679442,12.85376907,2032.0,2031.9,1.9758]
[1743049679642,12.85376907,2032.0,2031.9,1.3264]
[1743049681139,0.98418,2031.9,2031.8,40.8]
[1743049681345,3.99126006,2031.9,2031.8,42.1345]
[1743049681645,5.07825165,2031.9,2031.8,42.1345]
[1743049683046,8.28605165,2031.9,2031.8,42.1345]
[1743049685049,8.28605165,2031.9,2031.8,40.8]
[1743049685350,0.98432,2031.6,2031.5,1.38708716]
[1743049685542,4.19212,2031.6,2031.5,3.05708716]
[1743049685745,4.19212,2031.6,2031.5,43.85708716]
[1743049686449,5.59972,2031.6,2031.5,43.85708716]
[1743049691352,2.39192,2031.6,2031.5,43.85708716]
[1743049691660,5.59972,2031.6,2031.5,43.85708716]
[1743049692457,0.98432,2031.6,2031.5,44.84145716]
[1743049692647,2.35801,2031.7,2031.5,44.84145716]
[1743049692847,0.98431,2031.7,2031.6,1.3959]
[1743049693143,2.35801,2031.7,2031.6,3.2192]
[1743049693548,2.35801,2031.7,2031.6,44.0192]
[1743049699061,2.35801,2031.7,2031.6,3.2192]
[1743049699658,2.35801,2031.7,2031.6,44.0192]
[1743049700259,2.35801,2031.7,2031.6,3.2192]
[1743049702261,0.98459,2031.1,2030.9,0.98462]
[1743049702456,0.98459,2031.1,2031.0,0.65639356]
[1743049702762,0.98459,2031.1,2031.0,41.45639356]
[1743049703058,0.98459,2031.1,2031.0,44.47100356]
[1743049703267,0.98456,2031.1,2031.0,43.74639356]
[1743049704163,0.98455,2031.2,2031.0,44.73100356]
[1743049704355,0.98456,2031.1,2031.0,43.74639356]
[1743049705257,0.98456,2031.1,2031.0,45.09929356]
[1743049705653,0.98456,2031.1,2031.0,2.29]
[1743049706462,0.98456,2031.1,2031.0,3.6429]
[1743049708773,0.98456,2031.1,2031.0,2.29]
[1743049710365,2.4613,2031.2,2030.8,40.80738716]
[1743049710563,4.19246,2030.9,2030.8,0.00738716]
[1743049711066,4.88936,2030.9,2030.8,0.00738716]
[1743049712573,4.88936,2030.9,2030.8,2.03738716]
[1743049712871,4.88936,2030.9,2030.8,3.40518716]
[1743049713067,4.88936,2030.9,2030.8,1.37518716]
[1743049713462,4.88936,2030.9,2030.8,0.00738716]
[1743049716074,4.88936,2030.9,2030.4,4.1927]
[1743049716075,0.98486,2030.5,2030.4,3.2078]
[1743049716275,0.98486,2030.5,2030.4,5.5478]
[1743049716576,0.98486,2030.5,2030.4,3.2078]
[1743049716779,0.98486,2030.5,2030.4,6.8849]
[1743049716985,0.98486,2030.5,2030.4,6.6249]
[1743049718278,0.98486,2030.5,2030.4,4.6149]
[1743049718478,0.98486,2030.5,2030.4,6.6149]
[1743049718874,0.98486,2030.5,2030.4,4.6149]
[1743049719075,0.98486,2030.5,2030.4,6.5749]
[1743049719277,0.98486,2030.5,2030.4,4.6149]
[1743049719885,0.98486,2030.5,2030.4,6.8349]
[1743049720076,2.33956,2030.5,2030.4,4.6149]
[1743049720582,2.33956,2030.5,2030.4,6.9649]
[1743049721677,0.9849,2030.4,2030.3,1.3585]
[1743049721983,2.3185,2030.4,2030.3,3.6692]
[1743049731893,2.3185,2030.4,2030.3,4.65415]
[1743049732090,2.3185,2030.4,2030.3,3.6692]
[1743049739507,1.3336,2030.4,2030.3,4.65415]
[1743049740291,2.3185,2030.4,2030.3,3.6692]
[1743049741797,2.3185,2030.4,2030.3,4.65415]
[1743049742802,2.3185,2030.4,2030.3,3.6692]
[1743049743111,2.3185,2030.4,2030.3,4.65415]
[1743049743693,2.3185,2030.4,2030.3,3.6692]
[1743049743894,2.3185,2030.4,2030.3,4.65415]
[1743049745707,2.3185,2030.4,2030.3,3.6692]
[1743049746505,2.3185,2030.4,2030.3,4.65415]
[1743049746697,2.3185,2030.4,2030.3,3.6692]
[1743049748509,2.08178483,2030.6,2030.5,0.98486]
[1743049748705,1.3132,2030.6,2030.5,5.50486]
[1743049749110,1.3132,2030.6,2030.5,6.94066]
[1743049753702,1.3132,2030.6,2030.5,5.62846]
[1743049754814,1.3132,2030.6,2030.5,7.88846]
[1743049755714,1.3132,2030.6,2030.5,4.68066]
[1743049755914,1.3132,2030.6,2030.5,7.88846]
[1743049756212,1.3132,2030.6,2030.5,5.62846]
[1743049756413,1.3132,2030.6,2030.5,7.95846]
[1743049756816,1.3132,2030.6,2030.5,5.62846]
[1743049757003,1.3132,2030.6,2030.5,7.80846]
[1743049757199,1.3132,2030.6,2030.5,5.62846]
[1743049757410,1.3132,2030.6,2030.5,7.94846]
[1743049758405,1.3132,2030.6,2030.5,5.62846]
[1743049759615,1.3132,2030.6,2030.5,7.84846]
[1743049761304,1.3132,2030.6,2030.5,7.86846]
[1743049762820,1.3132,2030.6,2030.5,5.62846]
[1743049763817,1.3132,2030.6,2030.5,6.05846]
[1743049764118,1.3132,2030.6,2030.5,5.62846]
[1743049764618,1.3132,2030.6,2030.5,2.42066]
[1743049764823,1.3132,2030.6,2030.5,4.59066]
[1743049765012,1.3132,2030.6,2030.5,7.79846]
[1743049765418,1.3132,2030.6,2030.5,4.59066]
[1743049765722,1.3132,2030.6,2030.5,7.79846]
[1743049766311,1.3132,2030.6,2030.5,5.62846]
[1743049766512,1.3132,2030.6,2030.5,7.67846]
[1743049777127,1.3132,2030.6,2030.5,4.47066]
[1743049777329,1.3132,2030.6,2030.5,7.67846]
[1743049779222,1.3132,2030.6,2030.5,4.47066]
[1743049779525,1.3132,2030.6,2030.5,7.67846]
[1743049791751,2.0169,2030.6,2030.5,7.67846]
[1743049792237,2.6727,2030.6,2030.5,6.24266]
[1743049797241,3.65751,2030.6,2030.5,5.2578]
[1743049797646,2.6727,2030.6,2030.5,6.24266]
[1743049800045,2.6727,2030.6,2030.5,3.03486]
[1743049800249,3.65751,2030.6,2030.5,6.24266]
[1743049800546,3.65751,2030.6,2030.5,5.2578]
[1743049801139,2.6727,2030.6,2030.5,6.5774]
[1743049801340,2.6727,2030.6,2030.5,7.56226]
[1743049801947,3.65751,2030.6,2030.5,7.56226]
[1743049802447,2.6727,2030.6,2030.5,7.56226]
[1743049802648,3.65751,2030.6,2030.5,7.56226]
[1743049802837,2.6727,2030.6,2030.5,7.56226]
[1743049803241,1.3132,2030.6,2030.5,7.56226]
[1743049835593,4.332349,2031.0,2030.9,0.98466]
[1743049835783,1.3718,2031.5,2031.0,2.46146]
[1743049835984,1.35759356,2031.5,2031.0,8.85666]
[1743049836291,1.35759356,2031.5,2031.4,0.98442]
[1743049836793,0.70089356,2031.5,2031.4,2.06442]
[1743049843094,0.70089356,2031.5,2031.4,3.36102]
[1743049843986,0.70089356,2031.5,2031.4,2.28102]
[1743049844295,0.70089356,2031.5,2031.4,8.79102]
[1743049845692,0.70089356,2031.5,2031.4,11.99882]
[1743049847892,0.70089356,2031.5,2031.4,3.2078]
[1743049848088,0.70089356,2031.5,2031.4,6.56222]
[1743049848286,2.05749356,2031.5,2031.4,6.56222]
[1743049849581,2.05749356,2031.5,2031.4,7.23502]
[1743049849790,2.05749356,2031.5,2031.4,8.62682]
[1743049852497,2.05749356,2031.5,2031.4,5.41902]
[1743049852697,2.05749356,2031.5,2031.4,8.62682]
[1743049857093,1.3566,2031.5,2031.4,8.62682]
[1743049860607,0.00738716,2031.7,2031.6,0.98432]
[1743049860807,0.00738716,2031.7,2031.6,11.88432]
[1743049861108,0.00738716,2031.7,2031.6,12.53692]
[1743049862407,0.00738716,2031.7,2031.6,53.33692]
[1743049865002,0.00738716,2031.7,2031.6,54.70492]
[1743049878219,0.00738716,2031.7,2031.6,10.11232]
[1743049878512,0.00738716,2031.7,2031.6,11.88332]
[1743049878710,1.41188716,2031.7,2031.6,52.68332]
[1743049878911,2.06578716,2031.7,2031.6,52.68332]
[1743049879807,1.41188716,2031.7,2031.6,52.68332]
[1743049880011,1.41188716,2031.7,2031.6,53.35332]
[1743049880212,1.41188716,2031.7,2031.6,54.78852]
[1743049882318,1.41188716,2031.7,2031.6,49.54432]
[1743049882518,2.09508716,2031.7,2031.6,7.76]
[1743049882718,3.07935716,2031.7,2031.6,2.3741]